fUST/lending_fUST_20240906
["ID","MTS","AMOUNT","RATE_DAILY","PERIOD"]
[337317277,1725600346473,1526.59716065,0.00020088,2]
[337317281,1725600441320,-2904.58763272,0.00020099,2]
[337317282,1725600441345,-2904.58763271,0.000201,2]
[337317283,1725600441367,-300.0,0.000201,2]
[337317284,1725600441389,-300.0,0.000201,2]
[337317285,1725600441410,-1000.0,0.000201,2]
[337317286,1725600441432,-2904.58763271,0.00020101,2]
[337317287,1725600441454,-2904.58763271,0.00020101,2]
[337317288,1725600441475,-2904.58763271,0.00020102,2]
[337317289,1725600441495,-500.0,0.0002011,2]
[337317290,1725600441518,-1684.94,0.0002011,2]
[337317291,1725600441540,-1325.52,0.0002011,2]
[337317292,1725600441571,-500.0,0.0002011,2]
[337317293,1725600441594,-500.0,0.0002011,2]
[337317294,1725600441618,-500.0,0.0002011,2]
[337317295,1725600441640,-9015.44,0.0002011,2]
[337317296,1725600441661,-500.0,0.0002011,2]
[337317297,1725600441682,-500.0,0.0002011,2]
[337317298,1725600441705,-500.0,0.0002011,2]
[337317299,1725600441725,-1561.64,0.0002011,2]
[337317300,1725600441747,-500.09657772,0.0002011,2]
[337317301,1725600441769,-1069.71,0.0002011,2]
[337317302,1725600441795,-883.29,0.0002011,2]
[337317303,1725600441821,-2239.9,0.0002011,2]
[337317304,1725600441842,-500.0,0.0002011,2]
[337317305,1725600441865,-988.67,0.0002011,2]
[337317306,1725600441887,-979.93,0.0002011,2]
[337317307,1725600441907,-1898.11,0.0002011,2]
[337317308,1725600441928,-500.0,0.0002011,2]
[337317309,1725600441949,-3297.18,0.0002011,2]
[337317310,1725600441971,-1114.42,0.0002011,2]
[337317311,1725600441991,-500.0,0.0002011,2]
[337317312,1725600442013,-960.33,0.0002011,2]
[337317313,1725600442034,-500.0,0.0002011,2]
[337317314,1725600442055,-502.6155908,0.0002011,2]
[337317315,1725600442078,-1469.72,0.0002011,2]
[337317316,1725600442100,-28202.93,0.0002011,2]
[337317317,1725600442122,-1256.26,0.0002011,2]
[337317318,1725600442144,-982.47950622,0.0002011,2]
[337317319,1725600442168,-397.57,0.00020111,3]
[337317320,1725600442189,-198.79,0.00020111,3]
[337317321,1725600442211,-596.38,0.00020111,3]
[337317322,1725600442237,-50442.7152812,0.00020111,3]
[337317323,1725600442261,-988.67,0.0002012,2]
[337317324,1725600442283,-3000.0,0.00020121,2]
[337317325,1725600442306,-6064.93115115,0.00020121,2]
[337317327,1725600455866,171.9673991,0.00019321,2]
[337317328,1725600468694,1000.0,0.00020078,2]
[337317331,1725600491929,399.17396977,0.000167,2]
[337317332,1725600501370,416.63903255,0.00020078,2]
[337317350,1725600592756,6020.91032849,0.0002001,2]
[337317373,1725600632932,-198.78,0.000201,3]
[337317374,1725600632941,-470.0051307,0.000201,3]
[337317393,1725600638778,-126.3748693,0.000201,3]
[337317394,1725600638790,-300.0,0.00020108,2]
[337317395,1725600638800,-124.80348171,0.00020109,2]
[337317396,1725600638814,-1489.93651829,0.00020109,2]
[337317397,1725600638825,-6079.53,0.00020109,2]
[337317398,1725600638837,-605.42,0.00020109,2]
[337317399,1725600638850,-1270.29,0.00020109,2]
[337317400,1725600638859,-633.72481805,0.00020109,2]
[337317401,1725600638869,-8639.8,0.00020109,2]
[337317402,1725600638878,-500.0,0.00020109,2]
[337317403,1725600638888,-645.63,0.00020109,2]
[337317404,1725600638898,-500.0,0.00020109,2]
[337317405,1725600638907,-500.0,0.00020109,2]
[337317406,1725600638917,-1496.57,0.00020109,2]
[337317407,1725600638926,-846.48,0.00020109,2]
[337317408,1725600638937,-1666.97,0.00020109,2]
[337317409,1725600638946,-2146.58,0.00020109,2]
[337317410,1725600638956,-500.0,0.00020109,2]
[337317411,1725600638965,-906.28,0.00020109,2]
[337317412,1725600638975,-500.0,0.00020109,2]
[337317413,1725600638984,-500.0,0.00020109,2]
[337317414,1725600638994,-1075.59,0.00020109,2]
[337317415,1725600639003,-508.0248532,0.00020109,2]
[337317416,1725600639012,-939.1,0.00020109,2]
[337317417,1725600639022,-500.0,0.00020109,2]
[337317418,1725600639032,-504.59190074,0.00020109,2]
[337317419,1725600639041,-500.0,0.00020109,2]
[337317420,1725600639050,-504.72331796,0.00020109,2]
[337317421,1725600639059,-500.0,0.00020109,2]
[337317422,1725600639069,-1819.02,0.00020109,2]
[337317423,1725600639078,-500.0,0.0002011,2]
[337317424,1725600639088,-500.0,0.0002011,2]
[337317425,1725600639097,-1065.29,0.0002011,2]
[337317426,1725600639108,-944.83,0.0002011,2]
[337317427,1725600639117,-500.0,0.0002011,2]
[337317428,1725600639126,-500.0,0.0002011,2]
[337317429,1725600639135,-500.0,0.0002011,2]
[337317430,1725600639145,-1296.47,0.0002011,2]
[337317431,1725600639155,-2127.98,0.0002011,2]
[337317432,1725600639165,-500.0,0.0002011,2]
[337317433,1725600639175,-500.0,0.0002011,2]
[337317434,1725600639189,-500.0,0.0002011,2]
[337317435,1725600639199,-707.11,0.0002011,2]
[337317436,1725600639208,-500.0,0.0002011,2]
[337317437,1725600639218,-500.0,0.0002011,2]
[337317438,1725600639227,-500.0,0.0002011,2]
[337317439,1725600639237,-500.0,0.0002011,2]
[337317440,1725600639248,-500.0,0.0002011,2]
[337317441,1725600639257,-2766.06,0.0002011,2]
[337317442,1725600639267,-500.0,0.0002011,2]
[337317443,1725600639276,-1129.76,0.0002011,2]
[337317444,1725600639285,-500.0,0.0002011,2]
[337317445,1725600639294,-1211.83,0.0002011,2]
[337317446,1725600639303,-500.0,0.0002011,2]
[337317447,1725600639313,-1277.93,0.0002011,2]
[337317448,1725600639322,-500.0,0.0002011,2]
[337317449,1725600639331,-500.0,0.0002011,2]
[337317450,1725600639340,-500.0,0.0002011,2]
[337317451,1725600639350,-699.45,0.0002011,2]
[337317452,1725600639359,-500.0,0.0002011,2]
[337317453,1725600639368,-1566.33,0.0002011,2]
[337317454,1725600639378,-513.38189387,0.0002011,2]
[337317455,1725600639387,-500.0,0.0002011,2]
[337317456,1725600639396,-500.0,0.0002011,2]
[337317457,1725600639405,-500.0,0.0002011,2]
[337317458,1725600639414,-55953.84,0.0002011,2]
[337317459,1725600639424,-906.28,0.0002011,2]
[337317460,1725600639434,-500.0,0.0002011,2]
[337317461,1725600639445,-500.0,0.0002011,2]
[337317462,1725600639454,-501.38495613,0.0002011,2]
[337317463,1725600639463,-906.28,0.0002012,2]
[337317464,1725600639473,-22202.99960549,0.00020121,2]
[337317465,1725600639482,-500.0,0.00020166,2]
[337317466,1725600639491,-500.0,0.00020166,2]
[337317467,1725600639501,-500.0,0.00020166,2]
[337317468,1725600639511,-500.0,0.00020167,2]
[337317469,1725600639520,-500.0,0.00020167,2]
[337317470,1725600639530,-500.0,0.00020167,2]
[337317471,1725600639539,-500.0,0.00020167,2]
[337317472,1725600639549,-500.0,0.00020167,2]
[337317473,1725600639558,-500.0,0.00020167,2]
[337317474,1725600639568,-500.0,0.00020167,2]
[337317475,1725600639578,-563.45996673,0.00020167,2]
[337317476,1725600639587,-500.0,0.00020167,2]
[337317477,1725600639597,-500.0,0.00020167,2]
[337317478,1725600639606,-500.0,0.00020167,2]
[337317479,1725600639615,-213.45965279,0.00020167,2]
[337317480,1725600639625,-500.0,0.00020167,2]
[337317481,1725600639635,-500.0,0.00020167,2]
[337317482,1725600639644,-500.0,0.00020167,2]
[337317483,1725600639653,-500.0,0.00020167,2]
[337317484,1725600639664,-500.0,0.00020167,2]
[337317485,1725600639674,-500.0,0.00020167,2]
[337317486,1725600639686,-500.0,0.00020167,2]
[337317487,1725600639696,-500.0,0.00020167,2]
[337317488,1725600639705,-500.0,0.00020167,2]
[337317489,1725600639715,-500.0,0.00020167,2]
[337317490,1725600639725,-500.0,0.00020167,2]
[337317491,1725600639734,-500.0,0.00020167,2]
[337317492,1725600639744,-617.24350485,0.00020167,2]
[337317493,1725600639754,-500.0,0.00020167,2]
[337317494,1725600639763,-500.0,0.00020167,2]
[337317495,1725600639773,-500.0,0.00020167,2]
[337317496,1725600639782,-500.0,0.00020167,2]
[337317497,1725600639792,-500.0,0.00020167,2]
[337317498,1725600639801,-450.00000003,0.00020167,2]
[337317499,1725600639811,-342.68343947,0.00020167,2]
[337317500,1725600639820,-500.0,0.00020167,2]
[337317501,1725600639830,-500.0,0.00020167,2]
[337317502,1725600639840,-500.0,0.00020167,2]
[337317503,1725600639850,-500.0,0.00020167,2]
[337317504,1725600639861,-500.0,0.00020167,2]
[337317505,1725600639870,-500.0,0.00020167,2]
[337317506,1725600639879,-500.0,0.00020167,2]
[337317507,1725600640031,-500.0,0.00020167,2]
[337317508,1725600640042,-500.0,0.00020167,2]
[337317509,1725600640052,-521.51146986,0.00020167,2]
[337317510,1725600640061,-500.0,0.00020167,2]
[337317511,1725600640072,-500.0,0.00020167,2]
[337317512,1725600640081,-500.0,0.00020167,2]
[337317513,1725600640091,-500.0,0.00020167,2]
[337317514,1725600640101,-500.0,0.00020167,2]
[337317515,1725600640110,-500.0,0.00020167,2]
[337317516,1725600640120,-500.0,0.00020167,2]
[337317517,1725600640130,-500.0,0.00020167,2]
[337317518,1725600640139,-500.0,0.00020167,2]
[337317520,1725600640148,-500.0,0.00020167,2]
[337317521,1725600640157,-500.0,0.00020167,2]
[337317524,1725600640167,-500.0,0.00020167,2]
[337317526,1725600640176,-500.0,0.00020167,2]
[337317528,1725600640187,-500.0,0.00020167,2]
[337317529,1725600640197,-500.0,0.00020167,2]
[337317530,1725600640207,-500.0,0.00020167,2]
[337317531,1725600640217,-345.04841712,0.00020167,2]
[337317532,1725600640227,-500.0,0.00020167,2]
[337317533,1725600640237,-500.0,0.00020167,2]
[337317534,1725600640246,-500.0,0.00020167,2]
[337317536,1725600640256,-750.08284934,0.00020167,2]
[337317538,1725600640265,-750.08284934,0.00020167,2]
[337317540,1725600640275,-750.08284934,0.00020167,2]
[337317542,1725600640284,-750.08284934,0.00020167,2]
[337317543,1725600640293,-750.08284934,0.00020167,2]
[337317545,1725600640303,-750.08284934,0.00020167,2]
[337317548,1725600640312,-750.08284934,0.00020167,2]
[337317551,1725600640322,-750.08284934,0.00020167,2]
[337317554,1725600640331,-750.08284934,0.00020167,2]
[337317556,1725600640341,-750.08284934,0.00020167,2]
[337317558,1725600640350,-750.08284934,0.00020167,2]
[337317560,1725600640360,-750.08284934,0.00020167,2]
[337317561,1725600640369,-750.08284934,0.00020167,2]
[337317562,1725600640379,-750.08284934,0.00020167,2]
[337317563,1725600640389,-750.08284934,0.00020167,2]
[337317564,1725600640398,-750.08284934,0.00020167,2]
[337317565,1725600640409,-750.08284934,0.00020167,2]
[337317566,1725600640418,-750.08284934,0.00020167,2]
[337317567,1725600640430,-750.08284934,0.00020167,2]
[337317568,1725600640441,-750.08284934,0.00020167,2]
[337317569,1725600640451,-750.08284934,0.00020167,2]
[337317570,1725600640460,-750.08284934,0.00020167,2]
[337317571,1725600640469,-750.08284934,0.00020167,2]
[337317572,1725600640478,-750.08284934,0.00020167,2]
[337317573,1725600640488,-750.08284934,0.00020167,2]
[337317574,1725600640497,-750.08284934,0.00020167,2]
[337317575,1725600640507,-750.08284934,0.00020167,2]
[337317576,1725600640516,-750.08284934,0.00020167,2]
[337317577,1725600640525,-750.08284934,0.00020167,2]
[337317578,1725600640535,-750.08284934,0.00020167,2]
[337317579,1725600640544,-750.08284934,0.00020167,2]
[337317580,1725600640554,-750.08284934,0.00020167,2]
[337317581,1725600640563,-750.08284934,0.00020167,2]
[337317582,1725600640572,-750.08284934,0.00020167,2]
[337317583,1725600640581,-750.08284934,0.00020167,2]
[337317584,1725600640590,-750.08284934,0.00020167,2]
[337317585,1725600640599,-750.08284934,0.00020167,2]
[337317586,1725600640609,-750.08284934,0.00020167,2]
[337317587,1725600640619,-750.08284934,0.00020167,2]
[337317588,1725600640630,-750.08284934,0.00020167,2]
[337317589,1725600640640,-750.08284934,0.00020167,2]
[337317590,1725600640651,-750.08284934,0.00020167,2]
[337317591,1725600640660,-750.08284934,0.00020167,2]
[337317592,1725600640670,-750.08284934,0.00020167,2]
[337317593,1725600640684,-750.08284934,0.00020167,2]
[337317594,1725600640693,-750.08284934,0.00020167,2]
[337317595,1725600640706,-750.08284934,0.00020167,2]
[337317596,1725600640717,-750.08284934,0.00020167,2]
[337317597,1725600640726,-750.08284934,0.00020167,2]
[337317598,1725600640735,-750.08284934,0.00020167,2]
[337317599,1725600640744,-750.08284934,0.00020167,2]
[337317600,1725600640756,-750.08284934,0.00020167,2]
[337317601,1725600640766,-750.08284934,0.00020167,2]
[337317602,1725600640775,-750.08284934,0.00020167,2]
[337317603,1725600640785,-750.08284934,0.00020167,2]
[337317604,1725600640793,-750.08284934,0.00020167,2]
[337317605,1725600640803,-750.08284934,0.00020167,2]
[337317606,1725600640813,-750.08284934,0.00020167,2]
[337317607,1725600640823,-750.08284934,0.00020167,2]
[337317608,1725600640836,-750.08284934,0.00020167,2]
[337317609,1725600640846,-750.08284934,0.00020167,2]
[337317610,1725600640857,-750.08284934,0.00020167,2]
[337317611,1725600640866,-754.77086717,0.00020167,2]
[337317612,1725600640876,-754.77086717,0.00020167,2]
[337317613,1725600640885,-754.77086717,0.00020167,2]
[337317614,1725600640894,-754.77086717,0.00020167,2]
[337317615,1725600640903,-754.77086717,0.00020167,2]
[337317616,1725600640913,-754.77086717,0.00020167,2]
[337317617,1725600640922,-754.77086717,0.00020167,2]
[337317618,1725600640932,-754.77086717,0.00020167,2]
[337317619,1725600640942,-754.77086717,0.00020167,2]
[337317620,1725600640952,-754.77086717,0.00020167,2]
[337317621,1725600640962,-754.77086717,0.00020167,2]
[337317622,1725600640971,-754.77086717,0.00020167,2]
[337317623,1725600640980,-754.77086717,0.00020167,2]
[337317624,1725600640990,-754.77086717,0.00020167,2]
[337317625,1725600640999,-754.77086717,0.00020167,2]
[337317626,1725600641009,-754.77086717,0.00020167,2]
[337317627,1725600641018,-754.77086717,0.00020167,2]
[337317628,1725600641029,-754.77086711,0.00020167,2]
[337317629,1725600641039,-416.42636408,0.00020167,2]
[337317630,1725600641048,-500.0,0.00020167,2]
[337317631,1725600641058,-220.80596463,0.00020167,2]
[337317632,1725600641068,-500.0,0.00020167,2]
[337317633,1725600641077,-229.2762737,0.00020167,2]
[337317634,1725600641087,-500.0,0.00020167,2]
[337317635,1725600641096,-500.0,0.00020167,2]
[337317636,1725600641106,-500.0,0.00020167,2]
[337317637,1725600641115,-500.0,0.00020167,2]
[337317638,1725600641125,-500.0,0.00020167,2]
[337317639,1725600641134,-500.0,0.00020167,2]
[337317640,1725600641144,-500.0,0.00020167,2]
[337317641,1725600641153,-635.29962627,0.00020167,2]
[337317642,1725600641169,-500.0,0.00020167,2]
[337317643,1725600641186,-38769.71715237,0.00020168,15]
[337317644,1725600641200,-99011.9308759,0.00020168,2]
[337317645,1725600641214,-481197.004312,0.00020168,2]
[337317646,1725600641227,-99011.9308759,0.00020169,2]
[337317647,1725600641244,-198023.861752,0.00020169,2]
[337317648,1725600641259,-253.62258838,0.00020173,2]
[337317649,1725600641274,-277.96767628,0.00020173,2]
[337317650,1725600641288,-212.08033214,0.00020173,2]
[337317651,1725600641301,-158.68822722,0.00020173,2]
[337317652,1725600641315,-197.31685468,0.00020173,2]
[337317653,1725600641328,-279.07732929,0.00020173,2]
[337317654,1725600641343,-500.0,0.00020173,2]
[337317655,1725600641356,-156.99552443,0.00020173,2]
[337317656,1725600641367,-500.0,0.00020173,2]
[337317657,1725600641380,-161.18013156,0.00020173,2]
[337317658,1725600641393,-500.42384969,0.00020173,2]
[337317659,1725600641406,-500.0,0.00020173,2]
[337317660,1725600641420,-500.0,0.00020173,2]
[337317661,1725600641436,-500.31379239,0.00020173,2]
[337317662,1725600641450,-500.0,0.00020173,2]
[337317663,1725600641463,-298.449308,0.00020173,2]
[337317664,1725600641474,-235.38838712,0.00020173,2]
[337317665,1725600641486,-906.28,0.00020177,2]
[337317666,1725600641501,-906.28,0.00020177,2]
[337317667,1725600641515,-906.28,0.00020178,2]
[337317668,1725600641526,-906.28,0.00020178,2]
[337317669,1725600641540,-906.28,0.00020178,2]
[337317670,1725600641554,-906.28,0.00020178,2]
[337317671,1725600641566,-906.28,0.00020178,2]
[337317672,1725600641577,-906.28,0.00020178,2]
[337317673,1725600641589,-906.28,0.00020178,2]
[337317674,1725600641601,-906.28,0.00020178,2]
[337317675,1725600641615,-906.28,0.00020178,2]
[337317676,1725600641627,-906.28,0.00020178,2]
[337317677,1725600641640,-906.28,0.00020178,2]
[337317678,1725600641653,-906.28,0.00020178,2]
[337317679,1725600641669,-151.0,0.00020189,2]
[337317680,1725600641684,-1306.663022,0.00020189,2]
[337317681,1725600641696,-1306.663022,0.00020189,2]
[337317682,1725600641709,-151.0,0.00020189,2]
[337317683,1725600641723,-151.0,0.00020189,2]
[337317684,1725600641735,-151.0,0.00020189,2]
[337317685,1725600641748,-151.0,0.00020189,2]
[337317686,1725600641761,-151.0,0.00020189,2]
[337317687,1725600641774,-151.0,0.00020189,2]
[337317688,1725600641785,-151.0,0.00020189,2]
[337317689,1725600641798,-906.28,0.00020189,2]
[337317690,1725600641810,-906.28,0.00020189,2]
[337317691,1725600641822,-906.28,0.00020189,2]
[337317692,1725600641834,-906.28,0.00020189,2]
[337317693,1725600641846,-906.28,0.00020189,2]
[337317694,1725600641859,-906.28,0.00020189,2]
[337317695,1725600641871,-906.33,0.00020189,2]
[337317696,1725600641883,-152.737438,0.0002019,2]
[337317697,1725600641896,-151.0,0.0002019,2]
[337317698,1725600641908,-151.0,0.0002019,2]
[337317699,1725600641922,-151.0,0.0002019,2]
[337317700,1725600641934,-151.0,0.0002019,2]
[337317701,1725600641946,-151.0,0.0002019,2]
[337317702,1725600641958,-151.0,0.0002019,2]
[337317703,1725600641971,-151.0,0.0002019,2]
[337317704,1725600641983,-1076.004857,0.0002019,2]
[337317705,1725600641995,-1076.004857,0.0002019,2]
[337317706,1725600642008,-151.0,0.0002019,2]
[337317707,1725600642020,-159.720543,0.0002019,2]
[337317708,1725600642032,-153.186001,0.0002019,2]
[337317709,1725600642046,-151.0,0.0002019,2]
[337317710,1725600642059,-715.00735,0.0002019,2]
[337317711,1725600642070,-715.00735,0.0002019,2]
[337317712,1725600642083,-151.0,0.0002019,2]
[337317713,1725600642096,-1306.663022,0.0002019,2]
[337317714,1725600642109,-1306.663022,0.0002019,2]
[337317715,1725600642121,-255.047903,0.0002019,2]
[337317716,1725600642133,-151.0,0.0002019,2]
[337317717,1725600642147,-152.537966,0.0002019,2]
[337317718,1725600642159,-154.865111,0.0002019,2]
[337317719,1725600642171,-156.872797,0.0002019,2]
[337317720,1725600642185,-151.0,0.0002019,2]
[337317721,1725600642197,-151.0,0.0002019,2]
[337317722,1725600642209,-150.112233,0.000202,4]
[337317723,1725600642223,-150.112233,0.000202,3]
[337317724,1725600642234,-186.17391,0.000202,4]
[337317725,1725600642246,-150.112233,0.000202,4]
[337317726,1725600642258,-150.112233,0.000202,5]
[337317727,1725600642270,-150.112233,0.000202,4]
[337317728,1725600642282,-150.112233,0.000202,4]
[337317729,1725600642295,-150.112233,0.000202,4]
[337317730,1725600642307,-217.72092,0.000202,2]
[337317731,1725600642319,-306.0,0.000202,2]
[337317732,1725600642331,-150.112233,0.000202,4]
[337317733,1725600642344,-150.112233,0.000202,3]
[337317734,1725600642357,-150.112233,0.000202,4]
[337317735,1725600642369,-150.112233,0.000202,5]
[337317736,1725600642382,-150.112233,0.000202,3]
[337317737,1725600642394,-150.112233,0.000202,4]
[337317738,1725600642406,-150.112233,0.000202,4]
[337317739,1725600642419,-150.112233,0.000202,2]
[337317740,1725600642433,-150.112233,0.000202,2]
[337317741,1725600642452,-150.112233,0.000202,5]
[337317742,1725600642463,-208.1061349,0.000202,2]
[337317743,1725600642475,-208.1061349,0.000202,2]
[337317744,1725600642486,-402.8405734,0.000202,2]
[337317745,1725600642499,-49751.44889732,0.00020208,15]
[337317746,1725600642511,-500.0,0.00020208,2]
[337317747,1725600642524,-500.0,0.00020208,2]
[337317748,1725600642537,-500.0,0.00020208,2]
[337317749,1725600642550,-500.0,0.00020208,2]
[337317750,1725600642562,-500.0,0.00020208,2]
[337317751,1725600642576,-500.0,0.00020208,2]
[337317752,1725600642587,-500.0,0.00020208,2]
[337317753,1725600642597,-500.0,0.00020208,2]
[337317754,1725600642607,-500.0,0.00020208,2]
[337317755,1725600642617,-500.0,0.00020208,2]
[337317756,1725600642626,-885.51,0.00020208,2]
[337317757,1725600642636,-500.0,0.00020208,2]
[337317758,1725600642863,-619.65,0.00020208,2]
[337317759,1725600642877,-500.0,0.00020208,2]
[337317760,1725600642887,-715.68,0.00020208,2]
[337317761,1725600642896,-500.0,0.00020208,2]
[337317762,1725600642907,-318.89217369,0.00020208,2]
[337317763,1725600642916,-500.0,0.00020208,2]
[337317764,1725600642926,-500.0,0.00020208,2]
[337317765,1725600642938,-500.0,0.00020208,2]
[337317766,1725600642947,-1084.19,0.00020208,2]
[337317767,1725600642956,-500.0,0.00020208,2]
[337317768,1725600642966,-500.0,0.00020208,2]
[337317769,1725600642976,-500.0,0.00020208,2]
[337317770,1725600642985,-500.0,0.00020208,2]
[337317771,1725600642995,-500.0,0.00020208,2]
[337317772,1725600643005,-500.0,0.00020208,2]
[337317773,1725600643014,-500.0,0.00020208,2]
[337317774,1725600643024,-747.01,0.00020208,2]
[337317775,1725600643033,-500.0,0.00020208,2]
[337317776,1725600643043,-500.0,0.00020208,2]
[337317777,1725600643052,-500.0,0.00020208,2]
[337317778,1725600643062,-500.0,0.00020208,2]
[337317779,1725600643071,-500.0,0.00020208,2]
[337317780,1725600643080,-500.0,0.00020208,2]
[337317781,1725600643090,-532.9,0.00020208,2]
[337317782,1725600643099,-500.0,0.00020208,2]
[337317783,1725600643109,-173.95623009,0.00020208,2]
[337317784,1725600643119,-500.0,0.00020208,2]
[337317785,1725600643129,-820.41,0.00020208,2]
[337317786,1725600643138,-500.0,0.00020208,2]
[337317787,1725600643148,-500.0,0.00020208,2]
[337317788,1725600643157,-500.0,0.00020208,2]
[337317789,1725600643167,-500.0,0.00020208,2]
[337317790,1725600643176,-500.0,0.00020208,2]
[337317791,1725600643188,-500.0,0.00020208,2]
[337317792,1725600643197,-179.86031609,0.00020208,2]
[337317793,1725600643207,-500.0,0.00020208,2]
[337317794,1725600643216,-500.0,0.00020208,2]
[337317795,1725600643225,-500.0,0.00020208,2]
[337317796,1725600643235,-500.0,0.00020208,2]
[337317797,1725600643245,-500.0,0.00020208,2]
[337317798,1725600643255,-500.0,0.00020208,2]
[337317799,1725600643264,-501.98512959,0.00020208,2]
[337317800,1725600643274,-500.0,0.00020208,2]
[337317801,1725600643283,-500.0,0.00020208,2]
[337317802,1725600643293,-500.0,0.00020208,2]
[337317803,1725600643303,-500.0,0.00020208,2]
[337317804,1725600643312,-500.0,0.00020208,2]
[337317805,1725600643323,-500.0,0.00020208,2]
[337317806,1725600643332,-500.0,0.00020208,2]
[337317807,1725600643341,-1609.01,0.00020208,2]
[337317808,1725600643351,-151.0,0.00020208,2]
[337317809,1725600643361,-915.58,0.00020208,2]
[337317810,1725600643370,-500.0,0.00020208,2]
[337317811,1725600643379,-500.0,0.00020208,2]
[337317812,1725600643388,-1000.0,0.00020208,2]
[337317813,1725600643398,-500.0,0.00020208,2]
[337317814,1725600643407,-556.96049972,0.00020208,2]
[337317815,1725600643416,-500.0,0.00020208,2]
[337317816,1725600643426,-500.0,0.00020208,2]
[337317817,1725600643436,-536.6517579,0.00020208,2]
[337317818,1725600643445,-502.99532719,0.00020208,2]
[337317819,1725600643455,-1560.23,0.00020208,2]
[337317820,1725600643465,-545.34102415,0.00020208,2]
[337317821,1725600643474,-500.0,0.00020208,2]
[337317822,1725600643484,-500.0,0.00020208,2]
[337317823,1725600643493,-151.0,0.00020208,2]
[337317824,1725600643503,-500.0,0.00020208,2]
[337317825,1725600643512,-151.0,0.00020208,2]
[337317826,1725600643522,-1210.73,0.00020208,2]
[337317827,1725600643532,-151.0,0.00020208,2]
[337317828,1725600643541,-585.83,0.00020208,2]
[337317829,1725600643550,-500.0,0.00020208,2]
[337317830,1725600643560,-500.0,0.00020208,2]
[337317831,1725600643569,-500.0,0.00020208,2]
[337317832,1725600643579,-500.0,0.00020208,2]
[337317833,1725600643589,-902.24,0.00020208,2]
[337317834,1725600643599,-500.0,0.00020208,2]
[337317835,1725600643609,-500.0,0.00020208,2]
[337317836,1725600643619,-500.0,0.00020208,2]
[337317837,1725600643629,-500.0,0.00020208,2]
[337317838,1725600643639,-500.0,0.00020208,2]
[337317839,1725600643650,-985.49,0.00020208,2]
[337317840,1725600643660,-500.0,0.00020208,2]
[337317841,1725600643672,-1093.54,0.00020208,2]
[337317842,1725600643685,-500.0,0.00020208,2]
[337317843,1725600643695,-821.96,0.00020208,2]
[337317844,1725600643704,-500.0,0.00020208,2]
[337317845,1725600643714,-500.0,0.00020208,2]
[337317846,1725600643724,-7874.67,0.00020208,2]
[337317847,1725600643734,-1424.74,0.00020208,2]
[337317848,1725600643744,-599.34527015,0.00020208,2]
[337317849,1725600643757,-564.47,0.00020208,2]
[337317850,1725600643768,-500.0,0.00020208,2]
[337317851,1725600643779,-500.0,0.00020208,2]
[337317852,1725600643790,-1347.96,0.00020208,2]
[337317853,1725600643801,-500.0,0.00020208,2]
[337317854,1725600643812,-1399.9,0.00020208,2]
[337317855,1725600643824,-500.0,0.00020208,2]
[337317856,1725600643833,-500.0,0.00020208,2]
[337317857,1725600643845,-910.33,0.00020208,2]
[337317858,1725600643855,-500.0,0.00020208,2]